bitfinex-derivatives/quotes_BTCF0:USTF0_20250720
["timestamp","ask_amount","ask_price","bid_price","bid_amount"]
[1752971389927,1.44701514,117770.0,117760.0,0.06400191]
[1752971390126,1.44673514,117770.0,117760.0,0.06400191]
[1752971392428,1.46473091,117770.0,117760.0,0.06400191]
[1752971395233,1.46473091,117770.0,117760.0,0.01060191]
[1752971396930,1.46473091,117770.0,117760.0,0.03477191]
[1752971397730,1.46473091,117770.0,117760.0,0.05942191]
[1752971400535,1.20761627,117770.0,117760.0,0.05942191]
[1752971400736,1.46473091,117770.0,117760.0,0.05942191]
[1752971400931,1.46473091,117770.0,117760.0,0.03477191]
[1752971401632,1.46473091,117770.0,117760.0,0.05942191]
[1752971401936,1.46413091,117770.0,117760.0,0.06447191]
[1752971402436,0.61649627,117770.0,117760.0,0.23421681]
[1752971402637,1.33569359,117770.0,117760.0,0.26747681]
[1752971404132,1.31769782,117770.0,117760.0,0.26747681]
[1752971404333,1.33572521,117770.0,117760.0,0.26747681]
[1752971404627,1.46428253,117770.0,117760.0,0.26747681]
[1752971405135,1.46428227,117770.0,117760.0,0.26747681]
[1752971408040,1.46428227,117770.0,117760.0,0.09773191]
[1752971408642,1.46428227,117770.0,117760.0,0.01060191]
[1752971412248,1.46428227,117770.0,117760.0,0.03477191]
[1752971412756,1.52527356,117770.0,117760.0,0.03477191]
[1752971413252,1.46428227,117770.0,117760.0,0.03477191]
[1752971413555,1.46428227,117770.0,117760.0,0.01060191]
[1752971415156,1.46428227,117770.0,117760.0,0.03477191]
[1752971418462,1.46428227,117770.0,117760.0,0.01060191]
[1752971421553,1.59283959,117770.0,117760.0,0.01060191]
[1752971421755,1.46428227,117770.0,117760.0,0.06252191]
[1752971422054,1.46428227,117770.0,117760.0,0.09691191]
[1752971422257,1.46272227,117770.0,117760.0,0.09691191]
[1752971423365,1.46272227,117770.0,117760.0,0.26665671]
[1752971426861,1.46272227,117770.0,117760.0,0.09691191]
[1752971432265,1.46272227,117770.0,117760.0,0.26665671]
[1752971432458,1.46272227,117770.0,117760.0,0.09691191]
[1752971432763,0.74508495,117770.0,117760.0,0.26665671]
[1752971432960,1.30517495,117770.0,117760.0,0.26665671]
[1752971433559,1.32103495,117770.0,117760.0,0.26665671]
[1752971433767,0.73215495,117770.0,117760.0,0.26665671]
[1752971434066,1.32115495,117770.0,117760.0,0.26665671]
[1752971436568,1.32083495,117770.0,117760.0,0.26665671]
[1752971437563,1.20347763,117770.0,117760.0,0.26665671]
[1752971437869,1.33203495,117770.0,117760.0,0.26665671]
[1752971443872,1.33203495,117770.0,117760.0,0.52377135]
[1752971443873,0.02195713,117770.0,117760.0,0.52377135]
[1752971444073,0.73911445,117770.0,117760.0,0.39521403]
[1752971444472,0.61055713,117770.0,117760.0,1.05440335]
[1752971445175,0.73911445,117770.0,117760.0,0.79728871]
[1752971445375,0.73911445,117770.0,117760.0,1.05440335]
[1752971445871,0.15051445,117770.0,117760.0,1.05440335]
[1752971446173,0.73915445,117770.0,117760.0,1.05440335]
[1752971446875,0.73915445,117770.0,117760.0,0.92584603]
[1752971446876,0.61059713,117770.0,117760.0,0.92584603]
[1752971447077,0.73915445,117770.0,117760.0,0.92584603]
[1752971448276,0.73915445,117770.0,117760.0,1.05440335]
[1752971448775,0.73915445,117770.0,117760.0,0.88457135]
[1752971448980,0.61059713,117770.0,117760.0,0.79880553]
[1752971449677,0.59257,117770.0,117760.0,0.79880553]
[1752971453879,0.61058386,117770.0,117760.0,0.79880553]
[1752971454680,0.61058386,117770.0,117760.0,1.09050553]
[1752971458283,0.61046386,117770.0,117760.0,1.09050553]
[1752971458586,0.61046386,117770.0,117760.0,1.45050553]
[1752971459085,0.61046386,117770.0,117760.0,1.09050553]
[1752971459380,0.61046386,117770.0,117760.0,1.61033753]
[1752971459985,0.46021962,117790.0,117780.0,0.203616]
[1752971460190,0.8773908,117790.0,117780.0,0.254066]
[1752971460382,0.8932508,117790.0,117780.0,0.254066]
[1752971460583,1.06459962,117790.0,117780.0,0.254066]
[1752971460886,0.48727962,117790.0,117780.0,0.254066]
[1752971461184,1.07579962,117790.0,117780.0,0.254066]
[1752971462086,1.07699962,117790.0,117780.0,0.254066]
[1752971462390,1.07999962,117790.0,117780.0,0.254066]
[1752971464783,1.44079962,117790.0,117780.0,0.254066]
[1752971465087,1.44279962,117790.0,117780.0,0.254066]
[1752971469483,1.44279962,117790.0,117780.0,0.215236]
[1752971469692,1.44279962,117790.0,117780.0,0.169716]
[1752971470686,0.229146,117780.0,117770.0,0.36643628]
[1752971470991,0.85014524,117780.0,117770.0,0.36643628]
[1752971471487,0.85014524,117780.0,117770.0,0.32400488]
[1752971471991,0.86809408,117780.0,117770.0,0.32400488]
[1752971472190,0.9976337,117780.0,117770.0,0.06449738]
[1752971472588,0.86909408,117780.0,117770.0,0.06449738]
[1752971472794,0.86909408,117780.0,117770.0,0.04193738]
[1752971473496,0.86909408,117780.0,117770.0,0.21166778]
[1752971474095,0.86909408,117780.0,117770.0,0.23422778]
[1752971474491,0.87009408,117780.0,117770.0,0.23915778]
[1752971479985,0.87010031,117780.0,117770.0,0.23915778]
[1752971480190,0.87010031,117780.0,117770.0,0.25780778]
[1752971480392,1.45734031,117780.0,117770.0,0.27305778]
[1752971480996,1.09654031,117780.0,117770.0,0.27305778]
[1752971481196,1.45851031,117780.0,117770.0,0.27305778]
[1752971482391,1.45851031,117780.0,117770.0,0.2540804]
[1752971483696,0.85770031,117780.0,117770.0,0.2540804]
[1752971483899,0.94094069,117780.0,117770.0,0.38262002]
[1752971485099,0.82826107,117780.0,117770.0,0.38262002]
[1752971485302,0.95680069,117780.0,117770.0,0.38262002]
[1752971485699,0.95680069,117780.0,117770.0,0.2540804]
[1752971486001,0.95676069,117780.0,117770.0,0.2540804]
[1752971486502,1.08530031,117780.0,117770.0,0.2540804]
[1752971487705,0.82822107,117780.0,117770.0,0.2540804]
[1752971487899,0.95676069,117780.0,117770.0,0.2540804]
[1752971488704,0.82822107,117780.0,117770.0,0.2540804]
[1752971488902,1.08530031,117780.0,117770.0,0.2540804]
[1752971489410,1.09650031,117780.0,117770.0,0.2540804]
[1752971490110,1.09767031,117780.0,117770.0,0.2540804]
[1752971490309,1.45847031,117780.0,117770.0,0.2540804]
[1752971491609,1.45847031,117780.0,117770.0,0.2201804]
[1752971492507,0.1697304,117770.0,117760.0,0.26790821]
[1752971492814,0.86708471,117770.0,117760.0,0.22997671]
[1752971493705,0.86708471,117770.0,117760.0,0.00860191]
[1752971493911,0.2030348,117760.0,117750.0,0.3062527]
[1752971494111,1.45545911,117760.0,117750.0,0.3062527]
[1752971494303,1.45545911,117760.0,117750.0,0.3228927]
[1752971494612,1.45545911,117760.0,117750.0,0.3381827]
[1752971495013,1.36981605,117760.0,117750.0,0.3381827]
[1752971495513,1.36981605,117760.0,117750.0,0.3416727]
[1752971495714,1.36981605,117760.0,117750.0,0.3436727]
[1752971496217,1.36981605,117760.0,117750.0,0.3406727]
[1752971496511,1.36981605,117760.0,117750.0,0.34938452]
[1752971498215,1.36981605,117760.0,117750.0,0.31496452]
[1752971498711,1.15199987,117760.0,117750.0,0.34938452]
[1752971499211,1.15199987,117760.0,117750.0,0.5208207]
[1752971499508,0.41017507,117760.0,117750.0,0.5208207]
[1752971499711,0.60631507,117760.0,117750.0,1.2316207]
[1752971500612,0.60631507,117760.0,117750.0,1.06018452]
[1752971500811,0.60631507,117760.0,117750.0,1.2316207]
[1752971501914,0.01795507,117760.0,117750.0,1.2316207]
[1752971502108,0.60631507,117760.0,117750.0,1.2316207]
[1752971505522,0.77605987,117760.0,117750.0,1.2316207]
[1752971506822,0.60631507,117760.0,117750.0,1.2316207]
[1752971507724,0.77605987,117760.0,117750.0,0.8816207]
[1752971507922,0.60631507,117760.0,117750.0,0.8816207]
[1752971508425,0.77605987,117760.0,117750.0,0.8816207]
[1752971509125,0.80747987,117760.0,117750.0,0.8816207]
[1752971509326,0.83640987,117760.0,117750.0,0.71018452]
[1752971509532,1.00784605,117760.0,117750.0,0.71018452]
[1752971510030,0.99664605,117760.0,117750.0,0.71018452]
[1752971510228,0.82520987,117760.0,117750.0,0.71018452]
[1752971510435,0.80934987,117760.0,117750.0,0.71018452]
[1752971511030,0.80934987,117760.0,117750.0,0.34938452]
[1752971513729,0.7913948,117760.0,117750.0,0.34938452]
[1752971515031,0.8072548,117760.0,117750.0,0.34938452]
[1752971515929,0.8072548,117760.0,117750.0,0.71018452]
[1752971516436,0.8072548,117760.0,117750.0,0.34938452]
[1752971523442,0.8072548,117760.0,117750.0,0.71018452]
[1752971524041,0.8072548,117760.0,117750.0,0.34938452]
[1752971524937,0.63751,117760.0,117750.0,0.34938452]
[1752971525243,0.58824,117760.0,117750.0,0.8816207]
[1752971528542,0.7579848,117760.0,117750.0,0.71018452]
[1752971528743,0.7579848,117760.0,117750.0,0.8816207]
[1752971529041,0.60395,117760.0,117750.0,0.8816207]
[1752971529944,0.62189,117760.0,117750.0,0.8816207]
[1752971534952,0.75042835,117760.0,117750.0,0.83872287]
[1752971535552,0.92017315,117760.0,117750.0,0.83872287]
[1752971535753,0.93813676,117760.0,117750.0,0.83872287]
[1752971536354,0.76839196,117760.0,117750.0,0.83872287]
[1752971538259,0.75042835,117760.0,117750.0,0.83872287]
[1752971538860,0.62189,117760.0,117750.0,0.83872287]
[1752971539060,0.7683934,117760.0,117750.0,0.83872287]
[1752971539263,0.9381382,117760.0,117750.0,0.83872287]
[1752971539855,1.08253655,117760.0,117750.0,0.71018452]
[1752971540062,1.09490655,117760.0,117750.0,0.34938452]
[1752971541463,1.09490655,117760.0,117750.0,0.47792287]
[1752971542465,0.9663682,117760.0,117750.0,0.47792287]
[1752971542865,1.09490655,117760.0,117750.0,0.34938452]
[1752971543364,1.45570655,117760.0,117750.0,0.34938452]
[1752971544966,1.37004428,117760.0,117750.0,0.34938452]
[1752971546169,1.00924428,117760.0,117750.0,0.34938452]
[1752971547568,1.37004428,117760.0,117750.0,0.34938452]
[1752971549070,1.00924428,117760.0,117750.0,0.34938452]
[1752971550972,1.37004428,117760.0,117750.0,0.34938452]
[1752971551168,1.00924428,117760.0,117750.0,0.34938452]
[1752971552274,0.83782985,117760.0,117750.0,0.34938452]
[1752971552476,1.00924428,117760.0,117750.0,0.34938452]
[1752971553276,1.00924428,117760.0,117750.0,0.51938452]
[1752971554475,0.83665985,117760.0,117750.0,0.51938452]
[1752971554670,0.22135985,117760.0,117750.0,0.69079895]
[1752971554866,0.80939985,117760.0,117750.0,0.69079895]
[1752971555071,0.80939985,117760.0,117750.0,0.51938452]
[1752971555878,0.80939985,117760.0,117750.0,0.88018452]
[1752971557482,0.82525985,117760.0,117750.0,0.88018452]
[1752971562375,0.82525985,117760.0,117750.0,0.51938452]
[1752971562677,0.83645985,117760.0,117750.0,0.51938452]
[1752971564182,1.00787428,117760.0,117750.0,0.51938452]
[1752971566976,1.09356651,117760.0,117750.0,0.64793785]
[1752971569085,1.09353314,117760.0,117750.0,0.64793785]
[1752971569384,0.96497981,117760.0,117750.0,0.64793785]
[1752971569884,0.83642648,117760.0,117750.0,0.64793785]
[1752971570085,0.96497981,117760.0,117750.0,0.64793785]
[1752971572285,0.96497981,117760.0,117750.0,0.51938452]
[1752971572485,0.96497981,117760.0,117750.0,0.64793785]
[1752971572886,0.96497981,117760.0,117750.0,1.00873785]
[1752971573981,0.83642648,117760.0,117750.0,1.00873785]
[1752971574188,0.96497981,117760.0,117750.0,1.00873785]
[1752971575989,0.95377981,117760.0,117750.0,1.00873785]
[1752971577988,0.96497981,117760.0,117750.0,1.00873785]
[1752971580091,0.95377981,117760.0,117750.0,1.00873785]
[1752971581388,0.95377981,117760.0,117750.0,0.51938452]
[1752971581592,0.95377981,117760.0,117750.0,0.64793785]
[1752971581887,0.96497981,117760.0,117750.0,1.00873785]
[1752971582087,0.96497981,117760.0,117750.0,0.64793785]
[1752971586587,0.83642648,117760.0,117750.0,0.64793785]
[1752971586787,0.96497981,117760.0,117750.0,0.64793785]
[1752971590192,0.78403501,117760.0,117750.0,0.64793785]
[1752971590388,0.95377981,117760.0,117750.0,1.00873785]
[1752971590589,0.78403501,117760.0,117750.0,1.00873785]
[1752971590785,0.05158168,117760.0,117750.0,1.00873785]
[1752971590983,0.03364168,117760.0,117750.0,1.00873785]
[1752971591189,0.71965023,117780.0,117770.0,0.2029904]
[1752971591490,1.32522072,117780.0,117770.0,0.38443373]
[1752971591685,1.14429382,117780.0,117770.0,0.38443373]
[1752971591883,0.05144049,117780.0,117770.0,0.38443373]
[1752971592087,0.63721049,117780.0,117770.0,0.38443373]
[1752971592391,0.64021049,117780.0,117770.0,0.38443373]
[1752971592793,0.76876382,117780.0,117770.0,0.38443373]
[1752971593394,0.77076382,117780.0,117770.0,0.38443373]
[1752971594294,0.94234982,117780.0,117770.0,0.38443373]
[1752971594782,0.77263382,117780.0,117770.0,0.38443373]
[1752971595390,0.94234982,117780.0,117770.0,0.38443373]
[1752971595591,0.77263382,117780.0,117770.0,0.38443373]
[1752971598493,0.64408049,117780.0,117770.0,0.38443373]
[1752971600996,0.77263382,117780.0,117770.0,0.38443373]
[1752971601498,0.64408049,117780.0,117770.0,0.38443373]
[1752971602498,0.02293049,117780.0,117770.0,1.10523373]
[1752971602694,0.61041049,117780.0,117770.0,0.74523373]
[1752971603699,0.59248,117780.0,117770.0,0.74523373]
[1752971604398,0.59248,117780.0,117770.0,1.10523373]
[1752971604598,0.59248,117780.0,117770.0,0.74523373]
[1752971607497,0.005,117780.0,117770.0,1.83114706]
[1752971607802,0.005,117780.0,117770.0,1.70259373]
[1752971611098,1.19046,117800.0,117790.0,0.1697016]
[1752971611300,0.63902554,117800.0,117790.0,0.47166003]
[1752971611505,0.76757887,117800.0,117790.0,0.51408423]
[1752971611904,0.05174554,117800.0,117790.0,0.51408423]
[1752971612100,0.93722607,117800.0,117790.0,0.51408423]
[1752971612305,0.96828607,117800.0,117790.0,0.58323708]
[1752971612503,0.97328607,117800.0,117790.0,0.58423708]
[1752971614505,0.84473274,117800.0,117790.0,0.58423708]
[1752971614706,0.97328607,117800.0,117790.0,0.58423708]
[1752971616208,0.97328607,117800.0,117790.0,0.45568375]
[1752971616507,0.84473274,117800.0,117790.0,0.58423708]
[1752971616702,0.96208607,117800.0,117790.0,0.58423708]
[1752971618106,0.79239887,117800.0,117790.0,0.58423708]
[1752971620310,0.66384554,117800.0,117790.0,0.58423708]
[1752971620512,0.77653887,117800.0,117790.0,0.58423708]
[1752971621520,0.64798554,117800.0,117790.0,0.94503708]
[1752971621711,0.77653887,117800.0,117790.0,0.94503708]
[1752971623815,0.75865333,117800.0,117790.0,0.94503708]
[1752971625408,0.92834063,117800.0,117790.0,0.94503708]
[1752971625805,0.92834063,117800.0,117790.0,0.81648375]
[1752971626009,0.94420063,117800.0,117790.0,0.94503708]
[1752971627116,0.96210694,117800.0,117790.0,0.94503708]
[1752971627611,0.96210694,117800.0,117790.0,0.81648375]
[1752971627818,1.33410694,117800.0,117790.0,0.58423708]
[1752971628115,1.46383027,117800.0,117790.0,0.37866955]
[1752971629915,1.20672361,117800.0,117790.0,0.54181288]
[1752971630115,0.95657063,117800.0,117790.0,0.54181288]
[1752971630317,0.97448091,117800.0,117790.0,0.54181288]
[1752971631517,0.84592758,117800.0,117790.0,0.54181288]
[1752971631817,0.97448091,117800.0,117790.0,0.54181288]
[1752971632017,1.33528091,117800.0,117790.0,0.54181288]
[1752971632415,0.97448091,117800.0,117790.0,0.54181288]
[1752971637023,0.84592758,117800.0,117790.0,0.54181288]
[1752971637223,0.97448091,117800.0,117790.0,0.54181288]
[1752971637727,0.80479361,117800.0,117790.0,0.54181288]
[1752971637922,0.84592758,117800.0,117790.0,0.54181288]
[1752971638124,0.97448091,117800.0,117790.0,0.54181288]
[1752971639630,0.97331091,117800.0,117790.0,0.54181288]
[1752971641030,0.97448091,117800.0,117790.0,0.54181288]
[1752971641426,0.84592758,117800.0,117790.0,0.54181288]
[1752971641633,0.97448091,117800.0,117790.0,0.54181288]
[1752971641834,0.84592758,117800.0,117790.0,0.54181288]
[1752971642034,0.97448091,117800.0,117790.0,0.54181288]
[1752971643432,0.97448091,117800.0,117790.0,0.41325955]
[1752971643636,0.97448091,117800.0,117790.0,0.54181288]
[1752971644129,0.84592758,117800.0,117790.0,0.54181288]
[1752971644334,0.97448091,117800.0,117790.0,0.54181288]
[1752971644528,0.84475758,117800.0,117790.0,0.54181288]
[1752971644734,0.96211091,117800.0,117790.0,0.54181288]
[1752971645234,0.94625091,117800.0,117790.0,0.54181288]
[1752971647137,0.94625091,117800.0,117790.0,0.87181288]
[1752971647334,0.62938028,117800.0,117790.0,1.23261288]
[1752971648133,0.64462028,117800.0,117790.0,1.23261288]
[1752971653637,0.02691028,117800.0,117790.0,1.36116621]
[1752971654538,0.02691028,117800.0,117790.0,1.81929288]
[1752971655145,0.02691028,117800.0,117790.0,1.94784621]
[1752971655445,0.009,117800.0,117790.0,1.94784621]
[1752971655646,0.009,117800.0,117790.0,2.00892661]
[1752971657344,0.009,117800.0,117790.0,1.94784621]
[1752971660344,0.009,117800.0,117790.0,2.00892661]
[1752971662544,0.009,117800.0,117790.0,1.94784621]
[1752971662943,0.61983,117820.0,117810.0,0.2039431]
[1752971663144,0.6222406,117820.0,117810.0,1.05691643]
[1752971663542,0.0511606,117820.0,117810.0,1.05691643]
[1752971664338,0.0631606,117820.0,117810.0,1.05791643]
[1752971664739,0.0561606,117820.0,117810.0,1.05691643]
[1752971664946,0.0581606,117820.0,117810.0,1.05691643]
[1752971666746,0.0531606,117820.0,117810.0,1.05691643]
[1752971668148,0.0356906,117820.0,117810.0,1.64343643]
[1752971669849,0.0531606,117820.0,117810.0,1.64343643]
[1752971670052,0.18171393,117820.0,117810.0,1.64343643]
[1752971670446,0.0531606,117820.0,117810.0,1.64343643]
[1752971670648,0.18171393,117820.0,117810.0,1.64343643]
[1752971673652,0.18171393,117820.0,117810.0,1.5148831]
[1752971673848,0.35137263,117820.0,117810.0,1.28263643]
[1752971674048,0.35137263,117820.0,117810.0,0.69611643]
[1752971674249,0.36723263,117820.0,117810.0,0.69611643]
[1752971674950,0.50815596,117820.0,117810.0,0.2575631]
[1752971675557,0.50815596,117820.0,117810.0,0.38611643]
[1752971675752,0.20994393,117820.0,117810.0,0.38611643]
[1752971676055,0.20877393,117820.0,117810.0,0.38611643]
[1752971677255,0.20877393,117820.0,117810.0,0.2575631]
[1752971677457,0.20877393,117820.0,117810.0,0.38611643]
[1752971677652,0.37843273,117820.0,117810.0,0.38611643]
[1752971678457,0.20877393,117820.0,117810.0,0.38611643]
[1752971680056,0.37843273,117820.0,117810.0,0.38611643]
[1752971680560,0.73923273,117820.0,117810.0,0.38611643]
[1752971681161,0.74040273,117820.0,117810.0,0.38611643]
[1752971681460,0.6118494,117820.0,117810.0,0.38611643]
[1752971681660,0.74040273,117820.0,117810.0,0.38611643]
[1752971683254,0.37843273,117820.0,117810.0,0.38611643]
[1752971683460,0.73923273,117820.0,117810.0,0.38611643]
[1752971684857,0.37843273,117820.0,117810.0,0.38611643]
[1752971685063,0.73923273,117820.0,117810.0,0.38611643]
[1752971686059,0.37843273,117820.0,117810.0,0.38611643]
[1752971686364,0.73923273,117820.0,117810.0,0.38611643]
[1752971686862,0.37843273,117820.0,117810.0,0.38611643]
[1752971687765,0.73923273,117820.0,117810.0,0.38611643]
[1752971687959,0.37843273,117820.0,117810.0,0.38611643]
[1752971688359,0.73923273,117820.0,117810.0,0.38611643]
[1752971688561,0.72803273,117820.0,117810.0,0.38611643]
[1752971688761,0.36723273,117820.0,117810.0,0.38611643]
[1752971688957,0.72803273,117820.0,117810.0,0.38611643]
[1752971689463,0.36723273,117820.0,117810.0,0.38611643]
[1752971689664,0.72803273,117820.0,117810.0,0.38611643]
[1752971691068,0.73923273,117820.0,117810.0,0.2575631]
[1752971691367,0.73923273,117820.0,117810.0,0.38611643]
[1752971692867,0.74040273,117820.0,117810.0,0.2575631]
[1752971693167,0.74040273,117820.0,117810.0,0.38611643]
[1752971693368,0.86895606,117820.0,117810.0,0.38611643]
[1752971693964,0.86895606,117820.0,117810.0,0.40362]
[1752971694160,0.86895606,117820.0,117810.0,0.39863]
[1752971694668,0.86895606,117820.0,117810.0,0.40319]
[1752971695368,0.86895606,117820.0,117810.0,0.5728631]
[1752971696863,0.86895606,117820.0,117810.0,0.40319]
[1752971701671,0.85094546,117820.0,117810.0,0.40319]
[1752971701871,0.86897187,117820.0,117810.0,0.40319]
[1752971706370,0.86897187,117820.0,117810.0,0.5728631]
[1752971706573,0.86897187,117820.0,117810.0,0.5880531]
[1752971707475,0.86897187,117820.0,117810.0,0.6035031]
[1752971707774,0.86897187,117820.0,117810.0,0.6057531]
[1752971714889,0.86780187,117820.0,117810.0,0.6057531]
[1752971716292,0.61069521,117820.0,117810.0,0.6057531]
[1752971716492,0.86780187,117820.0,117810.0,0.6057531]
[1752971723596,0.86897187,117820.0,117810.0,0.6057531]
[1752971724995,0.86897187,117820.0,117810.0,0.37453]
[1752971724996,0.9975252,117820.0,117810.0,0.37453]
[1752971725188,0.9975252,117820.0,117810.0,0.35]
[1752971725989,0.86897187,117820.0,117810.0,0.37471]
[1752971726390,0.86897187,117820.0,117810.0,0.40311]
[1752971727396,0.9975252,117820.0,117810.0,0.40311]
[1752971727995,0.86897187,117820.0,117810.0,0.40311]
[1752971728398,0.86897187,117820.0,117810.0,0.5727831]
[1752971728592,0.86897187,117820.0,117810.0,0.40311]
[1752971732004,0.86897187,117820.0,117810.0,0.5727831]
[1752971733803,0.92996316,117820.0,117810.0,0.5727831]
[1752971734406,0.92996316,117820.0,117810.0,0.6060231]
[1752971734711,1.35901983,117820.0,117810.0,0.73457643]
[1752971735010,1.48757316,117820.0,117810.0,0.6060231]
[1752971740505,1.48757316,117820.0,117810.0,0.73457643]
[1752971740506,0.41237983,117820.0,117810.0,0.73457643]
[1752971740706,0.90403854,117820.0,117810.0,0.73457643]
[1752971740898,0.90403844,117820.0,117810.0,0.73457643]
[1752971741100,0.73437974,117820.0,117810.0,0.73457643]
[1752971741503,0.90403844,117820.0,117810.0,0.73457643]
[1752971742107,1.26483844,117820.0,117810.0,0.73457643]
[1752971742801,0.67903844,117820.0,117810.0,0.73457643]
[1752971743008,0.79533103,117820.0,117810.0,0.73457643]
[1752971743511,0.6667777,117820.0,117810.0,1.09537643]
[1752971744013,0.73433974,117820.0,117810.0,1.09537643]
[1752971744908,0.73433974,117820.0,117810.0,0.73457643]
[1752971746013,1.26479844,117820.0,117810.0,0.73457643]
[1752971751215,0.90399844,117820.0,117810.0,0.73457643]
[1752971751517,0.73433974,117820.0,117810.0,0.73457643]
[1752971751816,0.90399844,117820.0,117810.0,0.73457643]
[1752971752117,0.73433974,117820.0,117810.0,0.73457643]
[1752971752417,0.90399844,117820.0,117810.0,0.73457643]
[1752971753616,0.60578641,117820.0,117810.0,0.73457643]
[1752971754720,0.77544511,117820.0,117810.0,0.73457643]
[1752971756819,0.60578641,117820.0,117810.0,0.73457643]
[1752971758717,0.02002641,117820.0,117810.0,1.22392976]
[1752971758914,0.60558641,117820.0,117810.0,1.22392976]
[1752971760020,0.60558641,117820.0,117810.0,1.09537643]
[1752971760822,0.02002641,117820.0,117810.0,1.68093643]
[1752971761420,0.002,117820.0,117810.0,1.68093643]
[1752971764119,0.01997618,117820.0,117810.0,1.68093643]
[1752971765121,0.0199776,117820.0,117810.0,1.68093643]
[1752971765525,0.002,117820.0,117810.0,1.68093643]
[1752971765920,0.01997702,117820.0,117810.0,1.68093643]
[1752971776634,0.002,117820.0,117810.0,1.68093643]
[1752971776838,0.02020497,117820.0,117810.0,1.68093643]
[1752971778742,0.02020497,117820.0,117810.0,1.80948976]
[1752971779231,0.02020497,117820.0,117810.0,1.68093643]
[1752971782832,0.02020497,117820.0,117810.0,1.32013643]
[1752971783032,0.02020497,117820.0,117810.0,1.68093643]
[1752971783938,0.02020497,117820.0,117810.0,1.80948976]
[1752971785541,0.02020497,117820.0,117810.0,1.68093643]
[1752971789343,0.02020497,117820.0,117810.0,1.80948976]
[1752971797155,0.02020497,117820.0,117810.0,1.68093643]
[1752971797752,0.02020497,117820.0,117810.0,1.09537643]
[1752971798055,0.02020497,117820.0,117810.0,1.31965643]
[1752971798651,0.02020497,117820.0,117810.0,1.68045643]
[1752971800454,0.18986367,117820.0,117810.0,1.68045643]
[1752971800656,0.02020497,117820.0,117810.0,1.68045643]
[1752971802652,0.18986367,117820.0,117810.0,1.68045643]
[1752971803959,0.334027,117820.0,117810.0,0.6060231]
[1752971804154,0.351837,117820.0,117810.0,1.31961643]
[1752971804672,0.351837,117820.0,117810.0,1.1910631]
[1752971804874,0.351837,117820.0,117810.0,1.31961643]
[1752971805373,0.712637,117820.0,117810.0,1.31961643]
[1752971805973,0.712637,117820.0,117810.0,0.73457643]
[1752971806572,0.351837,117820.0,117810.0,0.73457643]
[1752971806774,0.334027,117820.0,117810.0,0.73457643]
[1752971806976,0.03581497,117820.0,117810.0,0.73457643]
[1752971807164,0.1643683,117820.0,117810.0,0.73457643]
[1752971807365,0.334027,117820.0,117810.0,0.73457643]
[1752971807569,0.20547367,117820.0,117810.0,0.73457643]
[1752971809568,0.03581497,117820.0,117810.0,0.73457643]
[1752971809774,0.02020497,117820.0,117810.0,0.73457643]
[1752971810174,0.18986367,117820.0,117810.0,0.73457643]
[1752971811572,0.02020497,117820.0,117810.0,0.73457643]
[1752971812475,0.18986367,117820.0,117810.0,0.73457643]
[1752971813876,0.02020497,117820.0,117810.0,0.73457643]
[1752971814578,0.02020497,117820.0,117810.0,1.09537643]
[1752971817079,0.03759267,117820.0,117810.0,1.09537643]
[1752971817279,0.03759267,117820.0,117810.0,1.11435259]
[1752971819377,0.02020497,117820.0,117810.0,1.11435259]
[1752971819884,0.03737341,117820.0,117810.0,1.11435259]
[1752971820079,0.02020497,117820.0,117810.0,1.11435259]
[1752971820982,0.03737341,117820.0,117810.0,1.24290592]
[1752971821287,0.02020497,117820.0,117810.0,1.24290592]
[1752971822987,0.03758153,117820.0,117810.0,1.24290592]
[1752971824290,0.02020497,117820.0,117810.0,1.24290592]
[1752971825487,0.03773058,117820.0,117810.0,1.24290592]
[1752971825688,0.02020497,117820.0,117810.0,1.24290592]
[1752971826089,0.03707907,117820.0,117810.0,1.24290592]
[1752971826492,0.02020497,117820.0,117810.0,1.24290592]
[1752971826688,0.42179129,117840.0,117830.0,0.1720943]
[1752971826993,1.02476233,117840.0,117830.0,0.75413461]
[1752971827193,1.04203691,117840.0,117830.0,0.75413461]
[1752971827389,0.03548562,117840.0,117830.0,1.25178662]
[1752971827893,0.03848562,117840.0,117830.0,1.25178662]
[1752971828700,0.03848562,117840.0,117830.0,1.12323329]
[1752971829295,0.03548562,117840.0,117830.0,1.12423329]
[1752971829797,0.03548562,117840.0,117830.0,1.12523329]
[1752971831097,0.03548562,117840.0,117830.0,0.99667996]
[1752971831293,0.03548562,117840.0,117830.0,1.12523329]
[1752971835897,0.03548562,117840.0,117830.0,0.99667996]
[1752971836102,0.03548562,117840.0,117830.0,1.12523329]
[1752971837702,0.03548562,117840.0,117830.0,0.76443329]
[1752971838202,0.03548562,117840.0,117830.0,1.12523329]
[1752971843806,0.03548562,117840.0,117830.0,0.76443329]
[1752971844005,0.03548562,117840.0,117830.0,1.12523329]
[1752971848008,0.03548562,117840.0,117830.0,1.25378662]
[1752971848906,0.58448,117860.0,117850.0,0.2069856]
[1752971849109,0.58448,117860.0,117850.0,0.77981342]
[1752971849610,0.12855333,117860.0,117850.0,0.77981342]
[1752971849810,0.89956904,117860.0,117850.0,0.77981342]
[1752971850011,0.90156904,117860.0,117850.0,0.77981342]
[1752971850313,0.91774904,117860.0,117850.0,0.77981342]
[1752971850513,0.91874904,117860.0,117850.0,0.77981342]
[1752971852406,0.91870904,117860.0,117850.0,0.77981342]
[1752971854814,0.93668904,117860.0,117850.0,0.77981342]
[1752971856212,0.80813571,117860.0,117850.0,0.77981342]
[1752971856414,0.93668904,117860.0,117850.0,0.77981342]
[1752971860818,0.95472867,117860.0,117850.0,0.77981342]
[1752971863924,1.01571996,117860.0,117850.0,0.77981342]
[1752971867520,0.95472867,117860.0,117850.0,0.77981342]
[1752971871125,0.82617534,117860.0,117850.0,0.77981342]
[1752971871326,0.95472867,117860.0,117850.0,0.77981342]
[1752971873528,0.82617534,117860.0,117850.0,0.77981342]
[1752971873727,0.95472867,117860.0,117850.0,0.77981342]
[1752971875028,0.95472867,117860.0,117850.0,1.14061342]
[1752971878335,0.95472867,117860.0,117850.0,0.77981342]
[1752971881034,0.95472867,117860.0,117850.0,0.65126009]
[1752971881234,0.95472867,117860.0,117850.0,0.77981342]
[1752971881635,0.82617534,117860.0,117850.0,0.77981342]
[1752971881837,0.95472867,117860.0,117850.0,0.77981342]
[1752971882736,0.82617534,117860.0,117850.0,0.77981342]
[1752971882937,0.95472867,117860.0,117850.0,0.77981342]
[1752971883639,0.82617534,117860.0,117850.0,0.77981342]
[1752971883838,0.95472867,117860.0,117850.0,0.65126009]
[1752971884139,0.95472867,117860.0,117850.0,0.77981342]
[1752971886034,0.63859414,117860.0,117850.0,1.14061342]
[1752971886233,0.62241414,117860.0,117850.0,1.26916675]
[1752971887235,0.62241414,117860.0,117850.0,1.01206009]
[1752971887442,0.62241414,117860.0,117850.0,1.14061342]
[1752971894045,0.63833414,117860.0,117850.0,1.14061342]
[1752971898049,0.03797414,117860.0,117850.0,1.26916675]
[1752971903059,0.03797414,117860.0,117850.0,1.14061342]
[1752971911755,0.03797414,117860.0,117850.0,1.72421342]
[1752971916259,0.03797414,117860.0,117850.0,1.59566009]